{"text_format":"1","workbook":"xlsx","n_sheets":12,"sheets":["Home","Database","Support","Bedinfo","Check out","Receipt","Sheet4","Sheet3","اليومية","Rep3","reb4","ورقة1"],"not_rendered":{"charts":0,"images":0,"macros":1,"external_links":0,"defined_names":1,"comments":0,"pivot_tables":0},"unopened":[],"bounds":{"document_bytes":16777216,"sheet_cells":100000,"rows_first":2000,"rows_last":500,"rows_between":2000,"halvings":0,"cell_chars":16384,"cell_head_chars":4096},"cells_cut":0,"cells_raw":0,"read":"whole","date_system":"1900"}

{"sheet":"Home","index":0,"n_rows":4,"n_cols":5,"rows_kept":4,"cut":false,"hidden":false,"merged":[[3,4,5,14]]}
[]
[]
[]
[null,null,null,null,"Room Booking Form"]

{"sheet":"Database","index":1,"n_rows":2,"n_cols":18,"rows_kept":2,"cut":false,"hidden":false,"merged":[]}
["S.NO","R Card NO","Guest Name","Addres","Country","Company","Arrival","Deparue","Days","Adult","Children","Room","Room Type","Meals","ID type","ID Number","status","Notes"]
[{"$f":"IF(B2=\"\",\"\",ROW()-1)","v":1},"01-00004","Ahmed Ali","Egypt","Aland","Booking,com","25-يونيو-2020","27-يونيو-2020",2,1,2," 114 Deluxe Room","Double","Bed & Brakfast","ID",1234,"Check IN"]

{"sheet":"Support","index":2,"n_rows":37,"n_cols":7,"rows_kept":37,"cut":false,"hidden":false,"merged":[]}
["Room","Meals","status","Room Type","Country","Combany","ID Type"]
[" 101 Standard Room","B.O","Reservation","Single","Abkhazia","Booking,com","ID"]
[" 102 Standard Room","Bed & Brakfast","Check IN","Double","Afghanistan",null,"Passport"]
[" 103 Standard Room","H.B","Check OUT",null,"Akrotiri",null,"Driver License"]
[" 104 Standard Room","F.B",null,null,"Aland"]
[" 105 Standard Room","ALL SOFT",null,null,"Albania"]
[" 106 Standard Room","ALL HARD",null,null,"Algeria"]
[" 107 Standard Room",null,null,null,"American Samoa"]
[" 108 Standard Room",null,null,null,"Andorra"]
[" 109 Standard Room",null,null,null,"Angola"]
[" 110 Standard Room",null,null,null,"Anguilla"]
[" 111 Deluxe Room",null,null,null,"Antigua and Barbuda"]
[" 112 Deluxe Room",null,null,null,"Argentina"]
[" 114 Deluxe Room",null,null,null,"Armenia"]
[" 115 Deluxe Room",null,null,null,"Aruba"]
[" 116 Deluxe Room",null,null,null,"Ascension Island"]
[" 117 Deluxe Room",null,null,null,"Australia"]
[null,null,null,null,"Austria"]
[null,null,null,null,"Azerbaijan"]
[null,null,null,null,"Bahamas, The"]
[null,null,null,null,"Bahrain"]
[null,null,null,null,"Bangladesh"]
[null,null,null,null,"Barbados"]
[null,null,null,null,"Belarus"]
[null,null,null,null,"Belgium"]
[null,null,null,null,"Belize"]
[null,null,null,null,"Benin "]
[null,null,null,null,"Bermuda"]
[null,null,null,null,"Bhutan"]
[null,null,null,null,"Bolivia"]
[null,null,null,null,"Bosnia and Herzegovina"]
[null,null,null,null,"Botswana"]
[null,null,null,null,"Brazil"]
[null,null,null,null,"Brunei"]
[null,null,null,null,"Bulgaria"]
[null,null,null,null,"Burkina Faso "]
[null,null,null,null,"Burundi"]

{"sheet":"Bedinfo","index":3,"n_rows":22,"n_cols":6,"rows_kept":22,"cut":false,"hidden":false,"merged":[]}
["Room Number","Floor","Room Type","Bed NO","BOOKING Statuse","Reat /Day"]
["Room101","Ground","Single",1,null,200]
["Room102","Ground","Single",2,null,{"$f":"+F2+50","v":250}]
["Room103","Ground","Single",3,null,{"$f":"+F3+50","v":300}]
["Room104","Ground","Single",4,null,{"$f":"+F4+50","v":350}]
["Room105","Ground","Single",5,null,400]
["Room106","Ground","Single",6,null,450]
["Room107","Ground","Single",7,null,500]
["Room108","Ground","Single",8,null,550]
["Room109","Ground","Single",9,null,600]
["Room110","Ground","Single",10,null,650]
["Room111","1st floor","Double",11,null,700]
["Room112","1st floor","Double",12,null,750]
["Room113","1st floor","Double",13,null,800]
["Room114","1st floor","Double",14,null,850]
["Room115","1st floor","Double",15,null,900]
["Room116","1st floor","Double",16,null,950]
["Room117","1st floor","Double",2,null,1000]
["Room118","1st floor","Double",2,null,1050]
["Room119","1st floor","Double",2,null,1100]
["Room120","1st floor","Double",2,null,1150]
["Room121","1st floor","Double",2,null,1200]

{"sheet":"Check out","index":4,"n_rows":3,"n_cols":18,"rows_kept":3,"cut":false,"hidden":false,"merged":[]}
["S.NO","R Card NO","Guest Name","Addres","Country","Company","Arrival","Deparue","Days","Adult","Children","Room","Room Type","Meals","ID type","ID Number","status","Notes"]
[{"$f":"IF(B2=\"\",\"\",ROW()-1)","v":1},"01-00002","Alaa Saleh","Egypt","Bahamas, The","Booking,com","01-يناير-2020","01-مارس-2020",0,1,3," 102 Standard Room","Single","B.O","Passport",123,"Check OUT"]
[{"$f":"IF(B3=\"\",\"\",ROW()-1)","v":2},"01-00003","Alaa Mohamed","Egypt - Aswan","American Samoa","Booking,com","25-يونيو-2020","28-يونيو-2020",3,1,0," 104 Standard Room","Double","ALL SOFT","Passport",123456,"Check OUT"]

{"sheet":"Receipt","index":5,"n_rows":0,"n_cols":0,"rows_kept":0,"cut":false,"hidden":false,"merged":[]}

{"sheet":"Sheet4","index":6,"n_rows":0,"n_cols":0,"rows_kept":0,"cut":false,"hidden":false,"merged":[]}

{"sheet":"Sheet3","index":7,"n_rows":0,"n_cols":0,"rows_kept":0,"cut":false,"hidden":false,"merged":[]}

{"sheet":"اليومية","index":8,"n_rows":0,"n_cols":0,"rows_kept":0,"cut":false,"hidden":false,"merged":[[8,6,9,6],[0,0,0,1],[0,5,0,6],[1,0,1,1],[2,1,2,5],[5,5,5,6],[6,5,6,6],[8,0,9,0],[8,1,9,1],[8,2,9,2],[8,3,9,3],[8,4,8,5]]}

{"sheet":"Rep3","index":9,"n_rows":0,"n_cols":0,"rows_kept":0,"cut":false,"hidden":false,"merged":[[2,0,2,5]]}

{"sheet":"reb4","index":10,"n_rows":0,"n_cols":0,"rows_kept":0,"cut":false,"hidden":false,"merged":[[2,0,2,5]]}

{"sheet":"ورقة1","index":11,"n_rows":0,"n_cols":0,"rows_kept":0,"cut":false,"hidden":false,"merged":[]}